Workbook

Sheet Лист1
A1: Школа | C1: МБОУ "Печищинская ООШ" | F1: Утвердил: | G1: должность | H1: директор
A2: Типовое примерное меню приготавливаемых блюд | G2: фамилия | H2: Абызов Е. В.
A3: Возрастная категория | E3: 7-11 лет | G3: дата | H3: 3 | I3: 2 | J3: 2025
H4: день | I4: месяц | J4: год
A5: Неделя | B5: День недели | C5: Прием пищи | D5: Раздел меню | E5: Блюда | F5: Вес блюда, г | G5: Белки | H5: Жиры | I5: Углеводы | J5: Калорийность | K5: № рецептуры | L5: Цена
A6: 1 | B6: 1 | C6: Завтрак | D6: гор.блюдо | E6: Ежики мясные с рисом в соусе для запекания | F6: 90 | G6: 12.683 | H6: 13.909 | I6: 10.985 | J6: 220 | K6: ТТК от 09.07.2023
D7: гор.блюдо | E7: Каша гречневая вязкая | F7: 150 | G7: 3.462 | H7: 4.634 | I7: 21.786 | J7: 143 | K7: 304/2015 Дели
D8: гор.напиток | E8: Чай с сахаром | F8: 208 | G8: 0.021 | H8: 0.005 | I8: 7.989 | J8: 32 | K8: ТТК от 2021
D9: хлеб | E9: Хлеб ржано-пшеничный/ Хлеб пшеничный | F9: 40 | G9: 2.520 | H9: 0.360 | I9: 18.840 | J9: 91
D10: фрукты | E10: Плоды и ягоды свежие (яблоки) | F10: 90 | G10: 0.360 | H10: 0.360 | I10: 8.820 | J10: 42 | K10: 338
D13: итого | F13: =SUM(F6:F12) -> 578 | G13: =SUM(G6:G12) -> 19.046 | H13: =SUM(H6:H12) -> 19.268 | I13: =SUM(I6:I12) -> 68.420 | J13: =SUM(J6:J12) -> 528 | L13: =SUM(L6:L12) -> 0.00
A14: =A6 -> 1 | B14: =B6 -> 1 | C14: Завтрак 2 | D14: фрукты
D17: итого | F17: =SUM(F14:F16) -> 0 | G17: =SUM(G14:G16) -> 0.000 | H17: 0.000 | I17: 0.000 | J17: 0 | L17: =SUM(L14:L22) -> 0.00
A18: =A6 -> 1 | B18: =B6 -> 1 | C18: Обед | D18: закуска
D19: 1 блюдо
D20: 2 блюдо
D21: гарнир
D22: напиток
D23: хлеб бел.
D24: хлеб черн.
D27: итого | G27: =SUM(G18:G26) -> 0.000 | H27: 0.000 | I27: 0.000 | J27: 0
A28: =A6 -> 1 | B28: =B6 -> 1 | C28: Полдник | D28: булочное
D29: напиток
D32: итого | F32: =SUM(F28:F31) -> 0 | G32: =SUM(G28:G31) -> 0.000 | H32: 0.000 | I32: 0.000 | J32: 0 | L32: 0.00
A33: =A6 -> 1 | B33: =B6 -> 1 | C33: Ужин | D33: гор.блюдо
D34: гарнир
D35: напиток
D36: хлеб
D39: итого | L39: =SUM(L33:L41) -> 0.00
A40: =A6 -> 1 | B40: =B6 -> 1 | C40: Ужин 2 | D40: кисломол.
D41: булочное
D42: напиток
D43: фрукты
D46: итого | L46: =SUM(L40:L48) -> 0.00
A47: =A6 -> 1 | B47: =B6 -> 1 | C47: Итого за день: | F47: =F13+F17+F27+F32+F39 -> 578 | G47: =G13+G17+G27+G32+G39 -> 19.046 | H47: 19.268 | I47: 68.420 | J47: 528.000 | L47: =L27 -> 0.00
A48: 1 | B48: 2 | C48: Завтрак | D48: гор.блюдо | E48: Жаркое из филе куриных грудок | F48: 200 | G48: 12.890 | H48: 15.910 | I48: 35.790 | J48: 341 | K48: ТТК 2738 от 07.12.2023
D50: гор.напиток | E50: Чай с сахаром | F50: 208 | G50: 0.021 | H50: 0.005 | I50: 7.989 | J50: 32 | K50: ТТК от 2021
D51: хлеб | E51: Хлеб ржано-пшеничный/ Хлеб пшеничный | F51: 40 | G51: 2.520 | H51: 0.360 | I51: 18.840 | J51: 91
D52: фрукты
E53: Салат из белокочанной капусты | F53: 60 | G53: 0.931 | H53: 3.051 | I53: 5.645 | J53: 54 | K53: 45/2015 Дели
D55: итого | F55: =SUM(F48:F54) -> 508 | G55: =SUM(G48:G54) -> 16.362 | H55: =SUM(H48:H54) -> 19.326 | I55: =SUM(I48:I54) -> 68.264 | J55: =SUM(J48:J54) -> 518 | L55: =SUM(L48:L54) -> 0.00
A56: =A48 -> 1 | B56: =B48 -> 2 | C56: Завтрак 2 | D56: фрукты
D59: итого | F59: =SUM(F56:F58) -> 0 | G59: =SUM(G56:G58) -> 0.000 | H59: =SUM(H56:H58) -> 0.000 | I59: =SUM(I56:I58) -> 0.000 | J59: =SUM(J56:J58) -> 0 | L59: =SUM(L56:L64) -> 0.00
A60: =A48 -> 1 | B60: =B48 -> 2 | C60: Обед | D60: закуска
D61: 1 блюдо
D62: 2 блюдо
D63: гарнир
D64: напиток
D65: хлеб бел.
D66: хлеб черн.
D69: итого | G69: =SUM(G60:G68) -> 0.000 | H69: 0.000 | I69: 0.000 | J69: 0
A70: =A48 -> 1 | B70: =B48 -> 2 | C70: Полдник | D70: булочное
D71: напиток
D74: итого | F74: =SUM(F70:F73) -> 0 | G74: =SUM(G70:G73) -> 0.000 | H74: =SUM(H70:H73) -> 0.000 | I74: =SUM(I70:I73) -> 0.000 | J74: =SUM(J70:J73) -> 0
A75: =A48 -> 1 | B75: =B48 -> 2 | C75: Ужин | D75: гор.блюдо
D76: гарнир
D77: напиток
D78: хлеб
D81: итого | F81: =SUM(F75:F80) -> 0 | G81: 0 | H81: 0 | I81: 0 | J81: =SUM(J75:J80) -> 0 | L81: =SUM(L75:L83) -> 0.00
A82: =A48 -> 1 | B82: =B48 -> 2 | C82: Ужин 2 | D82: кисломол.
D83: булочное
D84: напиток
D85: фрукты
D88: итого | F88: =SUM(F82:F87) -> 0 | G88: 0 | H88: 0 | I88: 0 | J88: =SUM(J82:J87) -> 0 | L88: =SUM(L82:L90) -> 0.00
A89: =A48 -> 1 | B89: =B48 -> 2 | C89: Итого за день: | F89: =F55+F59+F69+F74+F81+F88 -> 508 | G89: =G55+G59+G69+G74+G81+G88 -> 16.362 | H89: 19.326 | I89: 68.264 | J89: 518.000 | L89: =L69 -> 0.00
A90: 1 | B90: 3 | C90: Завтрак | D90: гор.блюдо | E90: Чикен | F90: 90 | G90: 11.103 | H90: 12.108 | I90: 11.093 | J90: 176 | K90: ТТК 2213 от 02.12ю2022
D91: гор.блюдо | E91: Макаронные изделия отварные | F91: 150 | G91: 5.044 | H91: 5.068 | I91: 35.906 | J91: 209 | K91: 202/2015 Дели
D92: гор.напиток | E92: Напиток из урюка | F92: 200 | G92: 0.020 | H92: 0.000 | I92: 7.990 | J92: 32 | K92: ТТК 2021
D93: хлеб | E93: Хлеб ржано-пшеничный/ Хлеб пшеничный | F93: 40 | G93: 2.520 | H93: 0.360 | I93: 18.840 | J93: 91
D94: фрукты | E94: Плоды и ягоды свежие (яблоки) | F94: 90 | G94: 0.360 | H94: 0.360 | I94: 8.820 | J94: 42 | K94: 338
D97: итого | F97: =SUM(F90:F96) -> 570 | G97: =SUM(G90:G96) -> 19.047 | H97: =SUM(H90:H96) -> 17.896 | I97: =SUM(I90:I96) -> 82.649 | J97: =SUM(J90:J96) -> 550 | L97: 0.00
A98: =A90 -> 1 | B98: =B90 -> 3 | C98: Завтрак 2 | D98: фрукты
D101: итого | F101: =SUM(F98:F100) -> 0 | G101: =SUM(G98:G100) -> 0.000 | H101: =SUM(H98:H100) -> 0.000 | I101: =SUM(I98:I100) -> 0.000 | J101: =SUM(J98:J100) -> 0 | L101: =SUM(L98:L106) -> 0.00
A102: =A90 -> 1 | B102: =B90 -> 3 | C102: Обед | D102: закуска
D103: 1 блюдо
D104: 2 блюдо
D105: гарнир
D106: напиток
D107: хлеб бел.
D108: хлеб черн.
D111: итого | F111: =SUM(F102:F110) -> 0 | G111: =SUM(G102:G110) -> 0.000 | H111: =SUM(H102:H110) -> 0.000 | I111: 0.000 | J111: 0
A112: =A90 -> 1 | B112: =B90 -> 3 | C112: Полдник | D112: булочное
D113: напиток
D116: итого | F116: =SUM(F112:F115) -> 0 | G116: =SUM(G112:G115) -> 0.000 | H116: =SUM(H112:H115) -> 0.000 | I116: =SUM(I112:I115) -> 0.000 | J116: =SUM(J112:J115) -> 0
A117: =A90 -> 1 | B117: =B90 -> 3 | C117: Ужин | D117: гор.блюдо
D118: гарнир
D119: напиток
D120: хлеб
D123: итого | F123: =SUM(F117:F122) -> 0 | G123: =SUM(G117:G122) -> 0.000 | H123: =SUM(H117:H122) -> 0.000 | I123: =SUM(I117:I122) -> 0.000 | J123: =SUM(J117:J122) -> 0 | L123: =SUM(L117:L125) -> 0.00
A124: =A90 -> 1 | B124: =B90 -> 3 | C124: Ужин 2 | D124: кисломол.
D125: булочное
D126: напиток
D127: фрукты
D130: итого | F130: =SUM(F124:F129) -> 0 | G130: =SUM(G124:G129) -> 0.000 | H130: =SUM(H124:H129) -> 0.000 | I130: =SUM(I124:I129) -> 0.000 | J130: =SUM(J124:J129) -> 0 | L130: =SUM(L124:L132) -> 0.00
A131: =A90 -> 1 | B131: =B90 -> 3 | C131: Итого за день: | F131: =F97+F101+F111+F116+F123+F130 -> 570 | G131: =G97+G101+G111+G116+G123+G130 -> 19.047 | H131: 17.896 | I131: 82.649 | J131: 550.000 | L131: =L111 -> 0.00
A132: 1 | B132: 4 | C132: Завтрак | D132: гор.блюдо | E132: Плов с говядиной | F132: 190 | G132: 15.440 | H132: 19.290 | I132: 51.200 | J132: 430 | K132: ТТК 27337 от 07.12.2023
D134: гор.напиток | E134: Чай с сахаром | F134: 208 | G134: 0.021 | H134: 0.005 | I134: 7.989 | J134: 32 | K134: ТТК от 2021
D135: хлеб | E135: Хлеб ржано-пшеничный/ Хлеб пшеничный | F135: 42 | G135: 2.672 | H135: 0.376 | I135: 19.824 | J135: 96
D136: фрукты
E137: Салат из моркови | F137: 60 | G137: 2.060 | H137: 0.120 | I137: 2.280 | J137: 14 | K137: ТТК
D139: итого | F139: =SUM(F132:F138) -> 500 | G139: =SUM(G132:G138) -> 20.193 | H139: =SUM(H132:H138) -> 19.791 | I139: =SUM(I132:I138) -> 81.293 | J139: =SUM(J132:J138) -> 572 | L139: =SUM(L132:L138) -> 0.00
A140: =A132 -> 1 | B140: =B132 -> 4 | C140: Завтрак 2 | D140: фрукты
D143: итого | F143: =SUM(F140:F142) -> 0 | G143: =SUM(G140:G142) -> 0.000 | H143: =SUM(H140:H142) -> 0.000 | I143: =SUM(I140:I142) -> 0.000 | J143: =SUM(J140:J142) -> 0 | L143: =SUM(L140:L148) -> 0.00
A144: =A132 -> 1 | B144: =B132 -> 4 | C144: Обед | D144: закуска
D145: 1 блюдо
D146: 2 блюдо
D147: гарнир
D148: напиток
D149: хлеб бел.
D150: хлеб черн.
D153: итого | F153: =SUM(F144:F152) -> 0 | G153: =SUM(G144:G152) -> 0.000 | H153: 0.000 | I153: 0.000 | J153: 0
A154: =A132 -> 1 | B154: =B132 -> 4 | C154: Полдник | D154: булочное
D155: напиток
D158: итого | F158: =SUM(F154:F157) -> 0 | G158: =SUM(G154:G157) -> 0.000 | H158: =SUM(H154:H157) -> 0.000 | I158: =SUM(I154:I157) -> 0.000 | J158: =SUM(J154:J157) -> 0 | L158: 0.00
A159: =A132 -> 1 | B159: =B132 -> 4 | C159: Ужин | D159: гор.блюдо
D160: гарнир
D161: напиток
D162: хлеб
D165: итого | F165: =SUM(F159:F164) -> 0 | G165: =SUM(G159:G164) -> 0.000 | H165: =SUM(H159:H164) -> 0.000 | I165: =SUM(I159:I164) -> 0.000 | J165: =SUM(J159:J164) -> 0 | L165: =SUM(L159:L167) -> 0.00
A166: =A132 -> 1 | B166: =B132 -> 4 | C166: Ужин 2 | D166: кисломол.
D167: булочное
D168: напиток
D169: фрукты
D172: итого | F172: =SUM(F166:F171) -> 0 | G172: =SUM(G166:G171) -> 0.000 | H172: =SUM(H166:H171) -> 0.000 | I172: =SUM(I166:I171) -> 0.000 | J172: =SUM(J166:J171) -> 0 | L172: =SUM(L166:L174) -> 0.00
A173: =A132 -> 1 | B173: =B132 -> 4 | C173: Итого за день: | F173: =F139+F143+F153+F158+F165+F172 -> 500 | G173: =G139+G143+G153+G158+G165+G172 -> 20.193 | H173: 19.791 | I173: 81.293 | J173: 572.000 | L173: =L153 -> 0.00
A174: 1 | B174: 5 | C174: Завтрак | D174: гор.блюдо | E174: Биточки рыбные из минтая | F174: 90 | G174: 12.060 | H174: 15.120 | I174: 16.920 | J174: 238 | K174: ТТК 1515 от 28.07.2021
D175: гор.блюдо | E175: Пюре картофельное | F175: 150 | G175: 3.437 | H175: 4.556 | I175: 21.451 | J175: 144 | K175: 312/2015 Дели
D176: гор.напиток | E176: Компот из свежих плодов (яблоки) | F176: 200 | G176: 0.080 | H176: 0.080 | I176: 11.940 | J176: 49 | K176: ТТК 2021
D177: хлеб | E177: Хлеб ржано-пшеничный/ Хлеб пшеничный | F177: 40 | G177: 2.520 | H177: 0.360 | I177: 18.840 | J177: 91
D178: фрукты
E179: Салат из квашеной капусты | F179: 60 | G179: 0.420 | H179: 0.060 | I179: 1.140 | J179: 7 | K179: 47/2015 Дели
D181: итого | F181: =SUM(F174:F180) -> 540 | G181: =SUM(G174:G180) -> 18.517 | H181: =SUM(H174:H180) -> 20.176 | I181: =SUM(I174:I180) -> 70.291 | J181: =SUM(J174:J180) -> 529 | L181: 0.00
A182: =A174 -> 1 | B182: =B174 -> 5 | C182: Завтрак 2 | D182: фрукты
D185: итого | F185: =SUM(F182:F184) -> 0 | G185: =SUM(G182:G184) -> 0.000 | H185: =SUM(H182:H184) -> 0.000 | I185: =SUM(I182:I184) -> 0.000 | J185: =SUM(J182:J184) -> 0 | L185: =SUM(L182:L190) -> 0.00
A186: =A174 -> 1 | B186: =B174 -> 5 | C186: Обед | D186: закуска
D187: 1 блюдо
D188: 2 блюдо
D189: гарнир
D190: напиток
D191: хлеб бел.
D192: хлеб черн.
D195: итого | F195: =SUM(F186:F194) -> 0 | G195: =SUM(G186:G194) -> 0.000 | H195: 0.000 | I195: 0.000 | J195: 0
A196: =A174 -> 1 | B196: =B174 -> 5 | C196: Полдник | D196: булочное
D197: напиток
D200: итого | F200: =SUM(F196:F199) -> 0 | G200: =SUM(G196:G199) -> 0.000 | H200: =SUM(H196:H199) -> 0.000 | I200: =SUM(I196:I199) -> 0.000 | J200: =SUM(J196:J199) -> 0 | L200: 0.00
A201: =A174 -> 1 | B201: =B174 -> 5 | C201: Ужин | D201: гор.блюдо
D202: гарнир
D203: напиток
D204: хлеб
D207: итого | F207: =SUM(F201:F206) -> 0 | G207: =SUM(G201:G206) -> 0.000 | H207: =SUM(H201:H206) -> 0.000 | I207: =SUM(I201:I206) -> 0.000 | J207: =SUM(J201:J206) -> 0 | L207: =SUM(L201:L209) -> 0.00
A208: =A174 -> 1 | B208: =B174 -> 5 | C208: Ужин 2 | D208: кисломол.
D209: булочное
D210: напиток
D211: фрукты
D214: итого | F214: =SUM(F208:F213) -> 0 | G214: =SUM(G208:G213) -> 0.000 | H214: =SUM(H208:H213) -> 0.000 | I214: =SUM(I208:I213) -> 0.000 | J214: =SUM(J208:J213) -> 0 | L214: =SUM(L208:L216) -> 0.00
A215: =A174 -> 1 | B215: =B174 -> 5 | C215: Итого за день: | F215: =F181+F185+F195+F200+F207+F214 -> 540.000 | G215: 18.517 | H215: 20.176 | I215: 70.291 | J215: =J181+J185+J195+J200+J207+J214 -> 529.000
A216: 1 | B216: 6 | C216: Завтрак | D216: гор.блюдо | E216: Пельмени "Для умников и умниц"отварные с маслом | F216: 155 | G216: 17.047 | H216: 15.236 | I216: 36.838 | J216: 344 | K216: ТТК 2015
D218: гор.напиток | E218: Чай с сахаром ,лимоном | F218: 213 | G218: 0.066 | H218: 0.010 | I218: 8.139 | J218: 34 | K218: ТТК 2021
D219: хлеб | E219: Хлеб ржано-пшеничный/ Хлеб пшеничный | F219: 42 | G219: 2.672 | H219: 0.376 | I219: 19.824 | J219: 96
D220: фрукты | E220: Плоды и ягоды свежие (яблоки) | F220: 90 | G220: 0.360 | H220: 0.360 | I220: 8.820 | J220: 42 | K220: 338
D223: итого | F223: =SUM(F216:F222) -> 500 | G223: =SUM(G216:G222) -> 20.145 | H223: =SUM(H216:H222) -> 15.982 | I223: =SUM(I216:I222) -> 73.621 | J223: =SUM(J216:J222) -> 516 | L223: =SUM(L216:L222) -> 0.00
A224: =A216 -> 1 | B224: =B216 -> 6 | C224: Завтрак 2 | D224: фрукты
D227: итого | F227: =SUM(F224:F226) -> 0 | G227: =SUM(G224:G226) -> 0.000 | H227: =SUM(H224:H226) -> 0.000 | I227: =SUM(I224:I226) -> 0.000 | J227: =SUM(J224:J226) -> 0 | L227: =SUM(L224:L232) -> 0.00
A228: =A216 -> 1 | B228: =B216 -> 6 | C228: Обед | D228: закуска
D229: 1 блюдо
D230: 2 блюдо
D231: гарнир
D232: напиток
D233: хлеб бел.
D234: хлеб черн.
D237: итого | F237: =SUM(F228:F236) -> 0 | G237: =SUM(G228:G236) -> 0.000 | H237: 0.000 | I237: 0.000 | J237: =SUM(J228:J236) -> 0
A238: =A216 -> 1 | B238: =B216 -> 6 | C238: Полдник | D238: булочное
D239: напиток
D242: итого | F242: =SUM(F238:F241) -> 0 | G242: =SUM(G238:G241) -> 0.000 | H242: =SUM(H238:H241) -> 0.000 | I242: =SUM(I238:I241) -> 0.000 | J242: =SUM(J238:J241) -> 0
A243: =A216 -> 1 | B243: =B216 -> 6 | C243: Ужин | D243: гор.блюдо
D244: гарнир
D245: напиток
D246: хлеб
D249: итого | F249: =SUM(F243:F248) -> 0 | G249: =SUM(G243:G248) -> 0.000 | H249: =SUM(H243:H248) -> 0.000 | I249: =SUM(I243:I248) -> 0.000 | J249: =SUM(J243:J248) -> 0 | L249: =SUM(L243:L251) -> 0.00
A250: =A216 -> 1 | B250: =B216 -> 6 | C250: Ужин 2 | D250: кисломол.
D251: булочное
D252: напиток
D253: фрукты
D256: итого | F256: =SUM(F250:F255) -> 0 | G256: =SUM(G250:G255) -> 0.000 | H256: =SUM(H250:H255) -> 0.000 | I256: =SUM(I250:I255) -> 0.000 | J256: =SUM(J250:J255) -> 0 | L256: =SUM(L250:L258) -> 0.00
A257: =A216 -> 1 | B257: =B216 -> 6 | C257: Итого за день: | F257: =F223+F227+F237+F242+F249+F256 -> 500 | G257: =G223+G227+G237+G242+G249+G256 -> 20.145 | H257: 15.982 | I257: 73.621 | J257: 516.000 | L257: =L237 -> 0.00
A258: 1 | B258: 7 | C258: Завтрак | D258: гор.блюдо
D260: гор.напиток
D261: хлеб
D262: фрукты
D265: итого | F265: =SUM(F258:F264) -> 0 | G265: =SUM(G258:G264) -> 0.000 | H265: =SUM(H258:H264) -> 0.000 | I265: =SUM(I258:I264) -> 0.000 | J265: =SUM(J258:J264) -> 0 | L265: 0.00
A266: =A258 -> 1 | B266: =B258 -> 7 | C266: Завтрак 2 | D266: фрукты
D269: итого | F269: =SUM(F266:F268) -> 0 | G269: =SUM(G266:G268) -> 0.000 | H269: =SUM(H266:H268) -> 0.000 | I269: =SUM(I266:I268) -> 0.000 | J269: =SUM(J266:J268) -> 0 | L269: =SUM(L266:L274) -> 0.00
A270: =A258 -> 1 | B270: =B258 -> 7 | C270: Обед | D270: закуска
D271: 1 блюдо
D272: 2 блюдо
D273: гарнир
D274: напиток
D275: хлеб бел.
D276: хлеб черн.
D279: итого | G279: =SUM(G270:G278) -> 0.000 | H279: =SUM(H270:H278) -> 0.000 | I279: =SUM(I270:I278) -> 0.000 | J279: =SUM(J270:J278) -> 0 | L279: =SUM(L276:L284) -> 0.00
... 225 more rows
